[Event "SVK-ch Open 2018"]
[Site "Banska Stiavnica"]
[Date "2018.07.11"]
[Round "5"]
[White "Szeberenyi, Adam"]
[Black "Lintner, Igor"]
[Result "1-0"]
[ECO "D20"]
[WhiteElo "2372"]
[BlackElo "2173"]
[Annotator "NA"]
[PlyCount "69"]
[EventDate "2018.07.07"]
[EventType "swiss"]
[EventCountry "SVK"]
[SourceTitle "playchess.com"]
[Source "ChessBase"]
[SourceQuality "1"]
[TimeControl "40/5400+30:1800+30"]

1. d4 {[%emt 0:00:00]} d5 {[%emt 0:00:00]} 2. c4 {[%emt 0:00:00]} dxc4 {[%emt 0:00:00]} 3. e3 {[%emt 0:00:24]} Nf6 {[%emt 0:00:59]} 4. Bxc4 {[%emt 0:00:12]} e6 {[%emt 0:02:40]} 5. Nf3 {[%emt 0:01:01]} Nbd7 {[%emt 0:03:04]} 6. O-O {[%emt 0:02:14]} Be7 {[%emt 0:00:04]} 7. Qe2 {[%emt 0:01:13]} c6 {[%emt 0:09:36]} 8. Rd1 {[%emt 0:03:35]} b5 {[%emt 0:02:35]} 9. Bb3 {[%emt 0:05:17]} Bb7 {[%emt 0:01:22]} 10. a4 {[%emt 0:00:18]} a6 {[%emt 0:00:52]} 11. e4 {[%emt 0:00:40]} Qb6 $16 {[%emt 0:05:37]} (11... O-O $11) 12. Nc3 {[%emt 0:11:39]} O-O {[%emt 0:06:51]} 13. Bg5 {[%emt 0:12:19]} Rfe8 {[%emt 0:03:55]} 14. axb5 {[%emt 0:12:10]} axb5 {[%emt 0:02:07]} 15. Rxa8 {[%emt 0:00:06]} Bxa8 {[%emt 0:00:23]} 16. e5 {[%emt 0:01:55]} Nd5 {[%emt 0:03:17]} 17. Bxe7 {[%emt 0:06:57]} Nxc3 {[%emt 0:02:13]} 18. bxc3 {[%emt 0:00:29]} Rxe7 {[%emt 0:00:04]} 19. Ra1 {[%emt 0:01:05]} Bb7 {[%emt 0:04:49]} 20. Qe4 {[%emt 0:09:59]} Nf8 {[%emt 0:09:30]} 21. Qe3 {[%emt 0:04:35]} Rc7 {[%emt 0:03:30]} 22. Nd2 {[%emt 0:06:32]} c5 {[%emt 0:05:25]} 23. Ne4 {[%emt 0:00:35]} cxd4 {[%emt 0:04:32]} 24. cxd4 {[%emt 0:00:03]} Bxe4 {[%emt 0:01:05]} 25. Qxe4 {[%emt 0:00:02]} Qa5 {[%emt 0:00:29]} 26. Rb1 {[%emt 0:01:34]} Qc3 {[%emt 0:03:33]} 27. h4 {[%emt 0:00:58]} Ng6 {[%emt 0:01:44]} 28. h5 {[%emt 0:01:04]} Ne7 {[%emt 0:01:52]} 29. d5 {[%emt 0:02:10]} exd5 {[%emt 0:07:37]} 30. Bxd5 {[%emt 0:00:08]} b4 {[%emt 0:04:13]} 31. e6 {[%emt 0:02:13]} f5 {[%emt 0:02:48]} 32. Qxf5 {[%emt 0:00:49]} Qd2 {[%emt 0:05:08]} 33. Qf7+ {[%emt 0:00:46]} Kh8 {[%emt 0:00:01]} 34. Qf8+ {[%emt 0:00:09]} Ng8 {[%emt 0:00:03]} 35. Qxg8+ {[%emt 0:00:10]} 1-0

[Event "SVK-ch Open 2018"]
[Site "Banska Stiavnica"]
[Date "2018.07.11"]
[Round "5"]
[White "Gelle, Istvan"]
[Black "Bednar, Jan"]
[Result "1-0"]
[ECO "A45"]
[WhiteElo "2344"]
[BlackElo "2010"]
[Annotator "NA"]
[PlyCount "77"]
[EventDate "2018.07.07"]
[EventType "swiss"]
[EventCountry "SVK"]
[SourceTitle "playchess.com"]
[Source "ChessBase"]
[SourceQuality "1"]
[TimeControl "40/5400+30:1800+30"]

1. d4 {[%emt 0:00:00]} Nf6 {[%emt 0:01:05]} 2. Bf4 {[%emt 0:00:00]} g6 {[%emt 0:00:24]} 3. e3 {[%emt 0:00:00]} Bg7 {[%emt 0:00:05]} 4. Nf3 {[%emt 0:00:00]} O-O {[%emt 0:00:07]} 5. h3 {[%emt 0:00:15]} d6 {[%emt 0:00:17]} 6. Be2 {[%emt 0:00:08]} b6 {[%emt 0:01:00]} 7. O-O {[%emt 0:00:14]} Bb7 {[%emt 0:00:09]} 8. a4 {[%emt 0:00:33]} a5 {[%emt 0:03:07]} 9. Nbd2 {[%emt 0:03:26]} Nbd7 {[%emt 0:01:51]} 10. c3 {[%emt 0:00:50] LiveBook: 33 Games} h6 {[%emt 0:04:52]} 11. Bh2 {[%emt 0:00:31]} e6 {[%emt 0:02:10]} 12. Re1 {[%emt 0:01:14]} Qe7 {[%emt 0:00:48]} 13. Qb3 {[%emt 0:01:26]} Ne4 {[%emt 0:09:51]} 14. Nc4 $11 {[%emt 0:07:29]} f5 {[%emt 0:01:03]} 15. Na3 {[%emt 0:07:46]} Kh7 {[%emt 0:02:49]} 16. Nb5 {[%emt 0:04:53]} Ndf6 {[%emt 0:10:51]} 17. Bc4 {[%emt 0:07:54]} Rae8 {[%emt 0:02:56]} 18. Rad1 {[%emt 0:01:58]} Ng5 {[%emt 0:08:14]} 19. Nxg5+ {[%emt 0:08:45]} hxg5 {[%emt 0:03:59]} 20. Bxe6 {[%emt 0:06:13]} g4 {[%emt 0:07:12]} 21. hxg4 {[%emt 0:14:01]} Nxg4 {[%emt 0:00:17]} 22. Bg3 {[%emt 0:00:36]} Bf6 {[%emt 0:12:11]} 23. f3 {[%emt 0:20:44]} Bh4 {[%emt 0:01:59]} 24. Bxh4 {[%emt 0:00:46]} Qxh4 {[%emt 0:00:07]} 25. fxg4 {[%emt 0:00:43]} fxg4 {[%emt 0:00:10]} 26. Re2 {[%emt 0:05:25]} Rf6 {[%emt 0:00:34]} 27. Nxc7 {[%emt 0:01:44]} Ref8 {[%emt 0:00:19]} 28. d5 {[%emt 0:02:11]} Rf5 {[%emt 0:06:40]} 29. Bxf5 {[%emt 0:02:17]} Rxf5 {[%emt 0:00:05]} 30. Rd4 {[%emt 0:01:30]} Rh5 {[%emt 0:08:34]} 31. Rf4 {[%emt 0:00:49]} Qh2+ {[%emt 0:00:31]} 32. Kf1 {[%emt 0:00:47]} g3 {[%emt 0:00:42]} 33. Ke1 {[%emt 0:00:30]} Qg1+ {[%emt 0:00:21]} 34. Kd2 {[%emt 0:00:26]} Rh1 {[%emt 0:01:10]} 35. Kd3 {[%emt 0:00:42]} Bc8 {[%emt 0:02:04]} 36. Ne6 {[%emt 0:00:30]} Ba6+ {[%emt 0:00:13]} 37. c4 {[%emt 0:00:12]} Qb1+ {[%emt 0:00:20]} 38. Qc2 {[%emt 0:00:21]} Bxc4+ {[%emt 0:02:05]} 39. Rxc4 {[%emt 0:00:12]} 1-0

[Event "SVK-ch Open 2018"]
[Site "Banska Stiavnica"]
[Date "2018.07.11"]
[Round "5"]
[White "Polyik, Peter"]
[Black "Horvath, Julia"]
[Result "1-0"]
[ECO "A46"]
[WhiteElo "2311"]
[BlackElo "2107"]
[Annotator "NA"]
[PlyCount "61"]
[EventDate "2018.07.07"]
[EventType "swiss"]
[EventCountry "SVK"]
[SourceTitle "playchess.com"]
[Source "ChessBase"]
[SourceQuality "1"]
[TimeControl "40/5400+30:1800+30"]

1. d4 {[%emt 0:00:00]} Nf6 {[%emt 0:00:00]} 2. Nf3 {[%emt 0:00:38]} d5 {[%emt 0:00:00]} 3. c4 {[%emt 0:00:37]} g6 {[%emt 0:00:11]} 4. cxd5 {[%emt 0:00:31]} Nxd5 {[%emt 0:00:06]} 5. e4 {[%emt 0:00:15]} Nb6 {[%emt 0:00:12]} 6. a4 {[%emt 0:03:22]} Bg7 {[%emt 0:00:47]} 7. a5 {[%emt 0:02:00]} N6d7 {[%emt 0:00:06]} 8. Nc3 {[%emt 0:05:28]} O-O {[%emt 0:00:11]} 9. Be2 {[%emt 0:01:20]} c5 {[%emt 0:10:41] [#]} 10. d5 $16 {[%emt 0:02:49]} Ne5 {[%emt 0:03:46]} 11. Nxe5 {[%emt 0:05:28]} Bxe5 {[%emt 0:00:06]} 12. Be3 {[%emt 0:09:01]} f5 {[%emt 0:13:51]} 13. O-O {[%emt 0:10:50]} fxe4 {[%emt 0:01:43]} 14. Nxe4 {[%emt 0:00:38]} Nd7 {[%emt 0:10:52]} 15. Bc4 {[%emt 0:11:41]} Nf6 {[%emt 0:06:41]} 16. d6+ {[%emt 0:05:43]} e6 {[%emt 0:03:12]} 17. Nxf6+ {[%emt 0:02:30]} Bxf6 {[%emt 0:01:17]} 18. Bxc5 {[%emt 0:00:30]} Bd7 {[%emt 0:00:07]} 19. Qb3 {[%emt 0:01:31]} Re8 {[%emt 0:03:41]} 20. Rfe1 {[%emt 0:04:34]} Qc8 {[%emt 0:01:28]} 21. Bb4 {[%emt 0:04:22]} Kf7 {[%emt 0:04:47]} 22. Rac1 {[%emt 0:00:51]} Kg7 {[%emt 0:01:50]} 23. Bb5 {[%emt 0:04:01]} Bc6 {[%emt 0:01:55]} 24. a6 {[%emt 0:02:50]} Bxb5 {[%emt 0:02:35]} 25. Rxc8 {[%emt 0:00:07]} Raxc8 {[%emt 0:00:09]} 26. axb7 {[%emt 0:00:20]} Rb8 {[%emt 0:00:04]} 27. Bc3 {[%emt 0:01:10]} a6 {[%emt 0:03:28]} 28. Bxf6+ {[%emt 0:01:21]} Kxf6 {[%emt 0:00:05]} 29. Qc3+ {[%emt 0:00:17]} Kf7 {[%emt 0:00:32]} 30. Qc7+ {[%emt 0:00:09]} Kg8 {[%emt 0:00:04]} 31. Rxe6 {[%emt 0:01:14]} 1-0

[Event "SVK-ch Open 2018"]
[Site "Banska Stiavnica"]
[Date "2018.07.11"]
[Round "5"]
[White "Petran, Peter"]
[Black "Bakalar, Jan"]
[Result "1/2-1/2"]
[ECO "A00"]
[WhiteElo "2302"]
[BlackElo "1998"]
[Annotator "NA"]
[PlyCount "139"]
[EventDate "2018.07.07"]
[EventType "swiss"]
[EventCountry "SVK"]
[SourceTitle "playchess.com"]
[Source "ChessBase"]
[SourceQuality "1"]
[TimeControl "40/5400+30:1800+30"]

1. g3 {[%emt 0:00:00]} d5 {[%emt 0:01:32]} 2. Bg2 {[%emt 0:00:00]} e5 {[%emt 0:00:10]} 3. c4 {[%emt 0:00:00]} dxc4 {[%emt 0:03:53]} 4. Qa4+ {[%emt 0:00:08]} c6 {[%emt 0:03:27]} 5. Qxc4 {[%emt 0:00:06]} Be6 {[%emt 0:02:05]} 6. Qa4 {[%emt 0:00:26]} Nd7 {[%emt 0:02:00]} 7. d3 $11 {[%emt 0:00:13]} Ngf6 {[%emt 0:03:09]} 8. Nc3 {[%emt 0:00:37]} Be7 {[%emt 0:04:23]} 9. Nf3 {[%emt 0:00:07]} h6 {[%emt 0:00:28]} 10. O-O {[%emt 0:00:12]} O-O {[%emt 0:01:55]} 11. Bd2 {[%emt 0:00:18]} Nb6 {[%emt 0:05:57]} 12. Qc2 {[%emt 0:01:22]} Nfd7 {[%emt 0:00:45]} 13. d4 {[%emt 0:13:51]} Bf6 {[%emt 0:10:22]} 14. dxe5 {[%emt 0:06:09]} Nxe5 {[%emt 0:00:13]} 15. Nxe5 {[%emt 0:02:01]} Bxe5 {[%emt 0:00:02]} 16. Rad1 {[%emt 0:00:40]} Qe7 {[%emt 0:04:39]} 17. e4 {[%emt 0:08:17]} f6 {[%emt 0:02:30]} 18. b3 {[%emt 0:02:06]} Rfd8 {[%emt 0:03:04]} 19. Ne2 {[%emt 0:00:40]} Rac8 {[%emt 0:01:35]} 20. Be3 {[%emt 0:09:24]} Rxd1 {[%emt 0:01:42]} 21. Rxd1 {[%emt 0:00:08]} Rd8 {[%emt 0:01:04]} 22. Nf4 {[%emt 0:07:32]} Rxd1+ {[%emt 0:06:45]} 23. Qxd1 {[%emt 0:00:02]} Bf7 {[%emt 0:00:49]} 24. Qc2 {[%emt 0:02:46]} Bxf4 {[%emt 0:08:05]} 25. gxf4 {[%emt 0:03:52]} Nc8 {[%emt 0:04:13]} 26. Bh3 {[%emt 0:05:06]} Be6 {[%emt 0:02:32]} 27. Bc5 {[%emt 0:03:19]} Qe8 {[%emt 0:02:50]} 28. f5 {[%emt 0:00:27]} Bf7 {[%emt 0:00:43]} 29. f4 {[%emt 0:05:27]} b6 {[%emt 0:01:40]} 30. Ba3 {[%emt 0:01:25]} a5 {[%emt 0:02:39]} 31. Bb2 {[%emt 0:00:48]} c5 {[%emt 0:01:14]} 32. e5 {[%emt 0:00:59]} Bd5 {[%emt 0:03:58]} 33. Qd3 {[%emt 0:02:52]} Bb7 {[%emt 0:02:38]} 34. exf6 {[%emt 0:03:18]} Qe1+ {[%emt 0:02:53]} 35. Bf1 {[%emt 0:02:31]} gxf6 {[%emt 0:05:11]} 36. Bxf6 {[%emt 0:01:47]} Nd6 {[%emt 0:00:18]} 37. Bc3 {[%emt 0:11:04]} Qe4 {[%emt 0:02:13]} 38. Qxe4 {[%emt 0:04:13]} Bxe4 {[%emt 0:01:34]} 39. f6 {[%emt 0:00:16]} Bd5 {[%emt 0:00:40]} 40. Be5 {[%emt 0:00:17]} Ne4 {[%emt 0:01:39]} 41. Bc7 {[%emt 0:31:30]} a4 {[%emt 0:31:30]} 42. bxa4 {[%emt 0:00:07]} Nc3 {[%emt 0:00:31]} 43. a3 {[%emt 0:00:00]} c4 {[%emt 0:00:00]} 44. Bxb6 {[%emt 0:00:00]} Nxa4 {[%emt 0:00:00]} 45. Bd4 {[%emt 0:00:00]} c3 {[%emt 0:00:00]} 46. Be3 {[%emt 0:00:00]} c2 {[%emt 0:00:00]} 47. Bd3 {[%emt 0:00:00]} Bb3 {[%emt 0:00:00]} 48. Bg6 {[%emt 0:00:00]} Nc3 {[%emt 0:00:00]} 49. Kg2 {[%emt 0:00:00]} Ne2 {[%emt 0:00:00]} 50. Kf2 {[%emt 0:04:14]} c1=Q {[%emt 0:00:00]} 51. Bxc1 {[%emt 0:00:03]} Nxc1 {[%emt 0:00:00]} 52. Ke3 {[%emt 0:00:03]} Bf7 {[%emt 0:00:00]} 53. Bc2 {[%emt 0:01:41]} Nb3 {[%emt 0:00:00]} 54. Ke4 {[%emt 0:01:11]} Bc4 {[%emt 0:00:00]} 55. Ke5 {[%emt 0:00:10]} Kf7 {[%emt 0:00:00]} 56. Bd1 {[%emt 0:00:06]} Na5 {[%emt 0:00:00]} 57. Bh5+ {[%emt 0:00:11]} Kf8 {[%emt 0:00:00]} 58. Kd6 {[%emt 0:00:12]} Bf7 {[%emt 0:00:00]} 59. Bxf7 {[%emt 0:00:56]} Kxf7 {[%emt 0:00:00]} 60. Kd5 {[%emt 0:01:18]} Kxf6 {[%emt 0:00:00]} 61. Ke4 {[%emt 0:00:04]} Nc4 {[%emt 0:00:00]} 62. a4 {[%emt 0:00:03]} Ke6 {[%emt 0:00:17]} 63. f5+ {[%emt 0:00:36]} Kf6 {[%emt 0:00:20]} 64. Kf4 {[%emt 0:00:03]} h5 {[%emt 0:00:22]} 65. h4 {[%emt 0:00:16]} Nd6 {[%emt 0:01:57]} 66. a5 {[%emt 0:00:12]} Nxf5 {[%emt 0:00:36]} 67. a6 {[%emt 0:00:07]} Ne7 {[%emt 0:00:04]} 68. a7 {[%emt 0:00:35]} Nd5+ {[%emt 0:00:05]} 69. Ke4 {[%emt 0:00:08]} Nc7 {[%emt 0:00:38]} 70. Kf4 {[%emt 0:00:06]} 1/2-1/2

[Event "SVK-ch Open 2018"]
[Site "Banska Stiavnica"]
[Date "2018.07.11"]
[Round "5"]
[White "Stockova, Zuzana"]
[Black "Sikorova, Olga"]
[Result "0-1"]
[ECO "C07"]
[WhiteElo "2301"]
[BlackElo "2193"]
[Annotator "NA"]
[PlyCount "110"]
[EventDate "2018.07.07"]
[EventType "swiss"]
[EventCountry "SVK"]
[SourceTitle "playchess.com"]
[Source "ChessBase"]
[SourceQuality "1"]
[TimeControl "40/5400+30:1800+30"]

1. e4 {[%emt 0:01:15]} e6 {[%emt 0:00:00]} 2. d4 {[%emt 0:00:07]} d5 {[%emt 0:00:00]} 3. Nd2 {[%emt 0:00:19]} c5 {[%emt 0:00:00]} 4. exd5 {[%emt 0:00:13]} Qxd5 {[%emt 0:00:08]} 5. dxc5 {[%emt 0:01:00]} Bxc5 {[%emt 0:00:46]} 6. Ngf3 {[%emt 0:03:48]} Nf6 {[%emt 0:00:53]} 7. Bc4 {[%emt 0:01:31]} Qc6 {[%emt 0:00:43]} 8. Qe2 {[%emt 0:00:54]} a6 $11 {[%emt 0:02:43] LiveBook: 29 Partien} 9. O-O {[%emt 0:06:38]} O-O {[%emt 0:09:48]} 10. Bd3 {[%emt 0:14:54]} Nbd7 {[%emt 0:03:48]} 11. Nb3 {[%emt 0:24:18]} b6 {[%emt 0:07:52]} 12. Nxc5 {[%emt 0:02:42]} Nxc5 {[%emt 0:04:01]} 13. Ne5 {[%emt 0:02:09]} Qd6 {[%emt 0:07:41]} 14. Rd1 {[%emt 0:02:35]} Nxd3 {[%emt 0:08:43]} 15. Rxd3 {[%emt 0:01:43]} Qc7 {[%emt 0:04:20]} 16. Rg3 {[%emt 0:06:36]} Ne8 {[%emt 0:20:52]} 17. Bf4 {[%emt 0:04:18]} Qb7 {[%emt 0:01:52]} 18. Nc4 {[%emt 0:16:29]} f6 {[%emt 0:05:55]} 19. Be3 {[%emt 0:02:41]} b5 {[%emt 0:00:29]} 20. Nb6 {[%emt 0:00:35]} Rb8 {[%emt 0:00:08]} 21. a4 {[%emt 0:01:54]} Qc6 {[%emt 0:02:04]} 22. axb5 {[%emt 0:02:19]} axb5 {[%emt 0:00:03]} 23. Nxc8 {[%emt 0:00:30]} Rxc8 {[%emt 0:00:23]} 24. Bd4 {[%emt 0:01:40]} b4 {[%emt 0:08:45]} 25. Qg4 {[%emt 0:00:43]} e5 {[%emt 0:02:21]} 26. Be3 {[%emt 0:00:22]} f5 {[%emt 0:01:11]} 27. Qxb4 {[%emt 0:00:36]} f4 {[%emt 0:00:31]} 28. Bxf4 {[%emt 0:00:30]} exf4 {[%emt 0:06:32]} 29. Rc3 {[%emt 0:00:08]} Qe6 {[%emt 0:00:13]} 30. Rxc8 {[%emt 0:00:47]} Qxc8 {[%emt 0:00:01]} 31. c4 {[%emt 0:00:25]} f3 {[%emt 0:00:27]} 32. c5 {[%emt 0:00:11]} fxg2 {[%emt 0:01:22]} 33. Qc4+ {[%emt 0:00:30]} Kh8 {[%emt 0:00:08]} 34. c6 {[%emt 0:00:38]} Nd6 {[%emt 0:01:13]} 35. Qd5 {[%emt 0:00:18]} Qc7 {[%emt 0:00:57]} 36. Rd1 {[%emt 0:01:00]} Rf6 {[%emt 0:00:27]} 37. Ra1 {[%emt 0:00:40]} Nc8 {[%emt 0:00:32]} 38. Re1 {[%emt 0:00:31]} Rf8 {[%emt 0:00:29]} 39. Re6 {[%emt 0:00:28]} Qf7 {[%emt 0:00:00]} 40. f3 {[%emt 0:00:00]} Nb6 {[%emt 0:00:00]} 41. Qe4 {[%emt 0:01:08]} h6 {[%emt 0:07:49]} 42. Kxg2 {[%emt 0:15:37]} Na4 {[%emt 0:14:42]} 43. Re7 {[%emt 0:11:04]} Qf6 {[%emt 0:01:15]} 44. Re8 {[%emt 0:00:39]} Nc5 {[%emt 0:01:20]} 45. Rxf8+ {[%emt 0:01:29]} Qxf8 {[%emt 0:00:02]} 46. Qd5 {[%emt 0:00:14]} Na6 {[%emt 0:04:44]} 47. Qa5 {[%emt 0:00:33]} Qc8 {[%emt 0:00:35]} 48. Qb6 {[%emt 0:00:43]} Nc7 {[%emt 0:00:29]} 49. b4 {[%emt 0:00:28]} Nd5 {[%emt 0:00:31]} 50. Qb7 {[%emt 0:01:04]} Qf5 {[%emt 0:00:47]} 51. Qd7 {[%emt 0:01:57]} Qg5+ {[%emt 0:00:54]} 52. Kf2 {[%emt 0:01:17]} Qd2+ {[%emt 0:00:08]} 53. Kg3 {[%emt 0:00:16]} Qe1+ {[%emt 0:00:55]} 54. Kh3 {[%emt 0:00:26]} Qf1+ {[%emt 0:00:42]} 55. Kh4 {[%emt 0:00:36]} Qf2+ {[%emt 0:00:39]} 0-1

[Event "SVK-ch Open 2018"]
[Site "Banska Stiavnica"]
[Date "2018.07.11"]
[Round "5"]
[White "Chmiel, Marcin"]
[Black "Brozyna, Mateusz"]
[Result "1-0"]
[ECO "C68"]
[WhiteElo "2249"]
[BlackElo "2098"]
[Annotator "NA"]
[PlyCount "61"]
[EventDate "2018.07.07"]
[EventType "swiss"]
[EventCountry "SVK"]
[SourceTitle "playchess.com"]
[Source "ChessBase"]
[SourceQuality "1"]
[TimeControl "40/5400+30:1800+30"]

1. e4 {[%emt 0:00:00]} e5 {[%emt 0:00:00]} 2. Nf3 {[%emt 0:00:01]} Nc6 {[%emt 0:00:00]} 3. Bb5 {[%emt 0:00:08]} a6 {[%emt 0:00:00]} 4. Bxc6 {[%emt 0:00:10]} dxc6 {[%emt 0:00:00]} 5. O-O {[%emt 0:00:09] LiveBook: 6320 Games} f6 {[%emt 0:00:21]} 6. d4 {[%emt 0:00:12]} Bg4 {[%emt 0:00:08]} 7. c3 {[%emt 0:00:19]} Qe7 {[%emt 0:02:06]} 8. dxe5 {[%emt 0:04:39]} fxe5 {[%emt 0:00:21]} 9. Be3 {[%emt 0:00:37]} Nf6 {[%emt 0:00:14]} 10. Nbd2 {[%emt 0:01:59]} O-O-O {[%emt 0:00:12]} 11. Qe2 {[%emt 0:01:30]} h6 {[%emt 0:03:57]} 12. b4 {[%emt 0:03:22]} g5 {[%emt 0:18:47]} 13. a4 {[%emt 0:00:55]} Bd7 $14 {[%emt 0:01:01]} 14. Rfb1 {[%emt 0:06:38]} g4 {[%emt 0:08:52]} 15. Nh4 {[%emt 0:02:52]} Qe8 {[%emt 0:02:07]} 16. c4 {[%emt 0:03:34]} Nh5 {[%emt 0:07:49]} 17. b5 {[%emt 0:04:33]} a5 {[%emt 0:05:05]} 18. Nb3 {[%emt 0:06:34]} Bb4 {[%emt 0:13:47]} 19. Bd2 {[%emt 0:03:04]} Bxd2 {[%emt 0:06:55]} 20. Qxd2 {[%emt 0:01:01]} b6 {[%emt 0:00:11]} 21. c5 {[%emt 0:01:18]} cxb5 {[%emt 0:06:54]} 22. cxb6 {[%emt 0:01:54]} cxb6 {[%emt 0:00:13]} 23. axb5 {[%emt 0:09:04]} Be6 {[%emt 0:04:45]} 24. Qe3 {[%emt 0:08:55]} Kb7 {[%emt 0:03:28]} 25. Nxa5+ {[%emt 0:06:13]} bxa5 {[%emt 0:01:06]} 26. Rxa5 {[%emt 0:00:08]} Ra8 {[%emt 0:00:39]} 27. Ra6 {[%emt 0:00:53]} Qd8 {[%emt 0:06:50]} 28. Rxe6 {[%emt 0:00:41]} Nf4 {[%emt 0:00:39]} 29. Rxe5 {[%emt 0:02:00]} Qf6 {[%emt 0:00:29]} 30. Qc5 {[%emt 0:02:46]} Rhc8 {[%emt 0:02:37]} 31. Qe7+ {[%emt 0:02:06]} 1-0

[Event "SVK-ch Open 2018"]
[Site "Banska Stiavnica"]
[Date "2018.07.11"]
[Round "5"]
[White "Ruckschloss, Karol"]
[Black "Ferkova, Dominika"]
[Result "1-0"]
[ECO "A22"]
[WhiteElo "2245"]
[BlackElo "2053"]
[Annotator "NA"]
[PlyCount "63"]
[EventDate "2018.07.07"]
[EventType "swiss"]
[EventCountry "SVK"]
[SourceTitle "playchess.com"]
[Source "ChessBase"]
[SourceQuality "1"]
[TimeControl "40/5400+30:1800+30"]

1. c4 {[%emt 0:00:00]} e5 {[%emt 0:00:00]} 2. Nc3 {[%emt 0:00:00]} Nf6 {[%emt 0:00:05]} 3. e4 {[%emt 0:01:40]} Bc5 {[%emt 0:01:08]} 4. d3 {[%emt 0:00:51]} d6 {[%emt 0:00:48]} 5. h3 {[%emt 0:02:43]} Nc6 {[%emt 0:01:16]} 6. a3 {[%emt 0:01:19]} O-O {[%emt 0:11:10]} 7. g4 {[%emt 0:03:31]} Ne8 $11 {[%emt 0:05:10]} 8. Nf3 {[%emt 0:07:16]} Qf6 {[%emt 0:14:02]} 9. Nd5 {[%emt 0:03:14]} Qd8 {[%emt 0:05:18]} 10. b4 {[%emt 0:02:39]} Bd4 {[%emt 0:01:26]} 11. Rb1 {[%emt 0:01:17]} a6 {[%emt 0:00:48]} 12. a4 {[%emt 0:00:29]} Be6 {[%emt 0:05:07]} 13. Nxd4 {[%emt 0:05:09]} Nxd4 {[%emt 0:04:52]} 14. a5 {[%emt 0:06:21]} b6 {[%emt 0:03:04]} 15. Bg2 {[%emt 0:00:02]} bxa5 {[%emt 0:00:56]} 16. bxa5 {[%emt 0:00:15]} Bxd5 {[%emt 0:01:20]} 17. exd5 {[%emt 0:01:49]} f5 {[%emt 0:10:35]} 18. Be3 {[%emt 0:06:30]} Qh4 {[%emt 0:11:51]} 19. Rb7 {[%emt 0:09:57]} Nf6 {[%emt 0:00:31]} 20. Rxc7 {[%emt 0:09:13]} Rab8 {[%emt 0:03:56]} 21. c5 {[%emt 0:00:42]} Ne8 {[%emt 0:01:35]} 22. cxd6 {[%emt 0:00:06]} Nxc7 {[%emt 0:00:06]} 23. dxc7 {[%emt 0:03:03]} Rb2 {[%emt 0:00:24]} 24. Bxd4 {[%emt 0:00:12]} exd4 {[%emt 0:10:56]} 25. O-O {[%emt 0:01:20]} fxg4 {[%emt 0:00:05]} 26. Qxg4 Qxg4 27. hxg4 {[%emt 0:00:34]} Rc2 {[%emt 0:00:46]} 28. d6 {[%emt 0:00:07]} Kf7 {[%emt 0:04:34]} 29. Bd5+ {[%emt 0:00:58]} Kf6 30. Re1 {[%emt 0:01:07]} Rc8 {[%emt 0:02:00]} 31. Bc4 {[%emt 0:01:10]} Rf8 {[%emt 0:01:01]} 32. d7 {[%emt 0:00:13]} 1-0

[Event "SVK-ch Open 2018"]
[Site "Banska Stiavnica"]
[Date "2018.07.11"]
[Round "5"]
[White "Seres, Bela"]
[Black "Sarkozi, Szabolcs"]
[Result "1-0"]
[ECO "C48"]
[WhiteElo "2212"]
[BlackElo "1808"]
[Annotator "NA"]
[PlyCount "57"]
[EventDate "2018.07.07"]
[EventType "swiss"]
[EventCountry "SVK"]
[SourceTitle "playchess.com"]
[Source "ChessBase"]
[SourceQuality "1"]
[TimeControl "40/5400+30:1800+30"]

1. e4 {[%emt 0:00:00]} Nc6 {[%emt 0:00:41]} 2. Nf3 {[%emt 0:00:00]} e5 {[%emt 0:00:15]} 3. Nc3 {[%emt 0:02:36]} Nf6 {[%emt 0:01:11]} 4. Bb5 {[%emt 0:00:44]} Bc5 {[%emt 0:01:49]} 5. O-O {[%emt 0:01:46]} d6 {[%emt 0:07:22]} 6. d4 {[%emt 0:06:16]} exd4 {[%emt 0:00:52]} 7. Nxd4 {[%emt 0:00:02]} Bd7 {[%emt 0:02:08]} 8. Nb3 {[%emt 0:00:12]} Bb6 $11 {[%emt 0:02:50] LiveBook: 6 Games} 9. Bg5 {[%emt 0:00:40]} h6 {[%emt 0:02:36]} 10. Bh4 {[%emt 0:00:12]} g5 {[%emt 0:05:40]} 11. Bg3 {[%emt 0:00:07]} Qe7 {[%emt 0:00:56]} 12. Nd5 {[%emt 0:13:54]} Nxd5 {[%emt 0:02:43]} 13. Bxc6 {[%emt 0:00:18]} bxc6 {[%emt 0:01:55]} 14. exd5 {[%emt 0:00:02]} O-O-O {[%emt 0:02:11]} 15. Qd3 {[%emt 0:05:10]} h5 {[%emt 0:09:30]} 16. a4 {[%emt 0:02:58]} cxd5 {[%emt 0:21:34]} 17. a5 {[%emt 0:00:47]} Bc5 {[%emt 0:00:34]} 18. Nxc5 {[%emt 0:02:25]} dxc5 {[%emt 0:00:12]} 19. Rfe1 {[%emt 0:00:08]} Be6 {[%emt 0:04:37]} 20. Qa6+ {[%emt 0:03:16]} Kb8 {[%emt 0:03:51]} 21. Qb5+ {[%emt 0:01:07]} Kc8 {[%emt 0:02:23]} 22. a6 {[%emt 0:00:34]} Rdg8 {[%emt 0:08:36]} 23. Qb7+ {[%emt 0:02:49]} Kd8 {[%emt 0:01:20]} 24. Qxa7 {[%emt 0:00:48]} h4 {[%emt 0:02:07]} 25. Qb8+ {[%emt 0:00:10]} Kd7 {[%emt 0:00:39]} 26. Qxc7+ {[%emt 0:00:24]} Ke8 {[%emt 0:00:06]} 27. Qb8+ {[%emt 0:01:04]} Kd7 {[%emt 0:01:41]} 28. Qb5+ {[%emt 0:00:18]} Kd8 {[%emt 0:01:45]} 29. a7 1-0